fUSD/lending_fUSD_20250521
["ID","MTS","AMOUNT","RATE_DAILY","PERIOD"]
[361863673,1747852247772,-287.61899177,0.00037626,30]
[361863674,1747852247781,-298.26089446,0.00037626,30]
[361863675,1747852247791,-309.29654756,0.00037626,30]
[361863676,1747852247801,-320.74051982,0.00037626,30]
[361863677,1747852247810,-332.60791905,0.00037626,30]
[361863678,1747852247820,-344.91441206,0.00037626,30]
[361863679,1747852247829,-357.6762453,0.00037626,30]
[361863680,1747852247839,-370.91026638,0.00037626,30]
[361863681,1747852247850,-384.63394623,0.00037626,30]
[361863682,1747852247859,-398.86540225,0.00037626,30]
[361863683,1747852247869,-200.0,0.00037627,2]
[361863684,1747852247879,-2000.0,0.00037627,2]
[361863685,1747852247888,-200.0,0.00037627,2]
[361863686,1747852247898,-1188.0,0.00037627,7]
[361863687,1747852247908,-1188.0,0.00037627,7]
[361863688,1747852247917,-1188.0,0.00037627,7]
[361863689,1747852247926,-1188.0,0.00037627,7]
[361863690,1747852247938,-1188.0,0.00037627,7]
[361863691,1747852247947,-1188.0,0.00037627,7]
[361863692,1747852247956,-1188.0,0.00037627,7]
[361863693,1747852247966,-1188.0,0.00037627,7]
[361863694,1747852247975,-1188.0,0.00037627,7]
[361863695,1747852247984,-1188.0,0.00037627,7]
[361863696,1747852247997,-1188.0,0.00037627,7]
[361863697,1747852248007,-761.30973703,0.00037627,7]
[361863698,1747852248016,-150.0,0.00037627,30]
[361863699,1747852248025,-157.28656283,0.00037627,30]
[361863700,1747852248035,-151.11012977,0.00037627,30]
[361863701,1747852248044,-150.0,0.00037627,30]
[361863702,1747852248054,-166.06865037,0.00037627,30]
[361863703,1747852248063,-500.0,0.00037627,30]
[361863704,1747852248072,-150.0,0.00037627,30]
[361863705,1747852248083,-200.0,0.00037627,2]
[361863706,1747852248094,-156.0,0.00037627,7]
[361863707,1747852248103,-156.0,0.00037627,7]
[361863708,1747852248112,-156.0,0.00037627,7]
[361863709,1747852248122,-160.0,0.00037627,7]
[361863710,1747852248131,-156.0,0.00037627,7]
[361863711,1747852248140,-188.71015449,0.00037627,7]
[361863712,1747852248150,-1188.0,0.00037627,7]
[361863713,1747852248159,-1188.0,0.00037627,7]
[361863714,1747852248169,-154.0,0.00037627,7]
[361863715,1747852248178,-1188.0,0.00037627,7]
[361863716,1747852248188,-264.61726528,0.00037627,7]
[361863717,1747852248197,-1188.0,0.00037627,7]
[361863718,1747852248206,-1188.0,0.00037627,7]
[361863719,1747852248215,-1188.0,0.00037627,7]
[361863720,1747852248225,-1097.07,0.00037627,7]
[361863721,1747852248234,-500.0,0.00037627,2]
[361863722,1747852248461,-150.0,0.00037627,10]
[361863723,1747852248471,-150.0,0.00037627,8]
[361863724,1747852248482,-200.0,0.00037627,2]
[361863725,1747852248491,-1114.0,0.00037627,8]
[361863726,1747852248501,-150.0,0.00037627,8]
[361863727,1747852248510,-156.85515144,0.00037627,8]
[361863728,1747852248519,-244518.5966847,0.00037629,2]
[361863729,1747852248528,-151.0,0.00037629,7]
[361863730,1747852248538,-3599.4347321,0.00037629,2]
[361863731,1747852248548,-151.0,0.00037629,7]
[361863732,1747852248557,-251.0,0.00037629,7]
[361863733,1747852248567,-151.0,0.00037629,7]
[361863734,1747852248576,-265.122198,0.00037629,7]
[361863735,1747852248586,-265.122198,0.00037629,7]
[361863736,1747852248596,-151.0,0.00037629,7]
[361863737,1747852248605,-158.860101,0.00037629,7]
[361863738,1747852248615,-158.860101,0.00037629,7]
[361863739,1747852248624,-151.0,0.00037629,7]
[361863740,1747852248634,-151.0,0.00037629,7]
[361863741,1747852248643,-151.0,0.00037629,7]
[361863742,1747852248652,-151.0,0.00037629,7]
[361863743,1747852248662,-209.989639,0.00037629,7]
[361863744,1747852248672,-150.0,0.00037654,30]
[361863745,1747852248681,-150.0,0.00037654,30]
[361863746,1747852248691,-501.56272529,0.00037654,30]
[361863747,1747852248701,-158.68574295,0.00037654,30]
[361863748,1747852248710,-501.21234881,0.00037654,2]
[361863749,1747852248720,-210.49620905,0.00037654,10]
[361863750,1747852248729,-150.0,0.00037654,8]
[361863751,1747852248739,-1114.0,0.00037654,8]
[361863752,1747852248749,-150.0,0.00037655,2]
[361863753,1747852248758,-150.0,0.0003767,2]
[361863754,1747852248769,-150.0,0.00037674,2]
[361863755,1747852248779,-150.0,0.00037679,2]
[361863756,1747852248790,-150.0,0.0003768,2]
[361863757,1747852248799,-744.0,0.00037681,5]
[361863758,1747852248809,-167.77368511,0.00037682,30]
[361863759,1747852248819,-150.0,0.00037682,30]
[361863760,1747852248829,-1114.0,0.00037682,8]
[361863761,1747852248840,-150.0,0.00037698,2]
[361863762,1747852248850,-6438.83,0.000377,14]
[361863763,1747852248860,-184.91528428,0.00037709,30]
[361863764,1747852248869,-1114.0,0.00037709,8]
[361863765,1747852248879,-500.0,0.00037722,5]
[361863766,1747852248889,-150.0,0.00037725,2]
[361863767,1747852248898,-1114.0,0.00037737,8]
[361863768,1747852248908,-150.0,0.00037737,2]
[361863769,1747852248917,-150.0,0.00037751,2]
[361863770,1747852248927,-150.0,0.00037752,2]
[361863771,1747852248937,-150.0,0.00037755,2]
[361863772,1747852248947,-150.0,0.00037761,2]
[361863773,1747852248957,-150.0,0.00037762,2]
[361863774,1747852248966,-1114.0,0.00037764,8]
[361863775,1747852248976,-150.0,0.00037764,2]
[361863776,1747852248986,-500.0,0.00037774,2]
[361863777,1747852248998,-379.8053,0.0003778,10]
[361863778,1747852249008,-150.0,0.0003778,2]
[361863779,1747852249017,-1114.0,0.00037791,8]
[361863780,1747852249027,-301.55,0.000378,2]
[361863781,1747852249037,-1000.0,0.000378,30]
[361863782,1747852249049,-1000.0,0.000378,30]
[361863783,1747852249059,-150.0,0.000378,2]
[361863784,1747852249069,-150.0,0.000378,2]
[361863785,1747852249081,-183.207143,0.00037808,5]
[361863786,1747852249092,-325.58,0.00037808,2]
[361863787,1747852249101,-341.73,0.00037808,2]
[361863788,1747852249111,-150.0,0.00037816,2]
[361863789,1747852249120,-1114.0,0.00037819,8]
[361863790,1747852249130,-150.0,0.00037827,2]
[361863791,1747852249140,-150.0,0.00037827,2]
[361863792,1747852249150,-369.67896349,0.0003783,2]
[361863793,1747852249159,-150.0,0.00037832,2]
[361863794,1747852249169,-150.0,0.00037835,2]
[361863795,1747852249179,-9714.0,0.00037836,120]
[361863796,1747852249188,-644.3190534,0.00037842,30]
[361863797,1747852249199,-1114.0,0.00037846,8]
[361863798,1747852249208,-150.0,0.00037857,2]
[361863799,1747852249218,-150.0,0.0003786,2]
[361863800,1747852249227,-498.0,0.00037863,120]
[361863801,1747852249237,-150.0,0.00037865,2]
[361863802,1747852249247,-150.0,0.00037867,2]
[361863803,1747852249256,-400.0,0.0003787,2]
[361863804,1747852249265,-804.58212333,0.00037871,2]
[361863805,1747852249275,-20876.8605896,0.00037872,2]
[361863806,1747852249285,-10340.9934079,0.00037872,2]
[361863807,1747852249294,-5525.3524278,0.00037872,2]
[361863808,1747852249303,-150.0,0.00037873,2]
[361863809,1747852249313,-1114.0,0.00037874,8]
[361863810,1747852249323,-1000.0,0.00037874,2]
[361863811,1747852249333,-1000.0,0.00037874,2]
[361863812,1747852249345,-1000.0,0.00037874,2]
[361863813,1747852249356,-1000.0,0.00037874,2]
[361863814,1747852249365,-1000.0,0.00037874,2]
[361863815,1747852249375,-1000.0,0.00037874,2]
[361863816,1747852249385,-1000.0,0.00037874,2]
[361863817,1747852249395,-1000.0,0.00037874,2]
[361863818,1747852249404,-1000.0,0.00037874,2]
[361863819,1747852249414,-1000.0,0.00037874,2]
[361863820,1747852249423,-1000.0,0.00037874,2]
[361863821,1747852249433,-1000.0,0.00037874,2]
[361863822,1747852249442,-1000.0,0.00037874,2]
[361863823,1747852249451,-1000.0,0.00037874,2]
[361863824,1747852249460,-1000.0,0.00037874,2]
[361863825,1747852249470,-1000.0,0.00037874,2]
[361863826,1747852249479,-1000.0,0.00037874,2]
[361863827,1747852249488,-1000.0,0.00037874,2]
[361863828,1747852249498,-1000.0,0.00037874,2]
[361863829,1747852249507,-1000.0,0.00037874,2]
[361863830,1747852249516,-1000.0,0.00037874,2]
[361863831,1747852249526,-1000.0,0.00037874,2]
[361863832,1747852249535,-1000.0,0.00037874,2]
[361863833,1747852249544,-1000.0,0.00037874,2]
[361863834,1747852249553,-1000.0,0.00037874,2]
[361863835,1747852249563,-1000.0,0.00037874,2]
[361863836,1747852249585,-1000.0,0.00037874,2]
[361863837,1747852249607,-1000.0,0.00037874,2]
[361863838,1747852249632,-1000.0,0.00037874,2]
[361863839,1747852249657,-1000.0,0.00037874,2]
[361863840,1747852249676,-1000.0,0.00037874,2]
[361863841,1747852249701,-278.54955605,0.00037874,2]
[361863842,1747852249726,-1004.11744046,0.00037874,2]
[361863843,1747852249750,-202.40813755,0.00037874,2]
[361863844,1747852249772,-181.4706067,0.00037874,2]
[361863845,1747852249794,-259.3344079,0.00037874,2]
[361863846,1747852249816,-300.0,0.00037879,10]
[361863847,1747852249833,-196.76640472,0.00037879,10]
[361863848,1747852249858,-666.0,0.00037879,10]
[361863849,1747852249873,-244.0875,0.00037879,2]
[361863850,1747852249891,-150.0,0.00037879,2]
[361863851,1747852249909,-1000.0,0.00037879,30]
[361863852,1747852249926,-1238.24,0.0003788,5]
[361863853,1747852249942,-154.0,0.0003788,7]
[361863854,1747852249959,-154.0,0.0003788,7]
[361863855,1747852249977,-154.0,0.0003788,7]
[361863856,1747852249995,-154.0,0.0003788,7]
[361863857,1747852250014,-154.0,0.0003788,7]
[361863858,1747852250031,-154.0,0.0003788,7]
[361863860,1747852250049,-154.0,0.0003788,7]
[361863862,1747852250067,-154.0,0.0003788,7]
[361863863,1747852250094,-154.0,0.0003788,7]
[361863864,1747852250112,-154.0,0.0003788,7]
[361863865,1747852250129,-156.87358373,0.0003788,7]
[361863866,1747852250148,-151.0,0.0003788,7]
[361863867,1747852250166,-151.0,0.0003788,7]
[361863868,1747852250184,-151.0,0.0003788,7]
[361863869,1747852250201,-226.091852,0.0003788,7]
[361863870,1747852250220,-430.076347,0.0003788,7]
[361863871,1747852250236,-430.076347,0.0003788,7]
[361863872,1747852250257,-160.0,0.000379,23]
[361863873,1747852250276,-150.0,0.000379,2]
[361863874,1747852250294,-1114.0,0.00037901,8]
[361863875,1747852250311,-150.0,0.00037902,2]
[361863876,1747852250330,-303.27,0.00037918,2]
[361863877,1747852250352,-303.58,0.00037918,2]
[361863878,1747852250370,-150.0,0.00037925,2]
[361863879,1747852250388,-1114.0,0.00037928,8]
[361863880,1747852250416,-150.0,0.00037951,2]
[361863881,1747852250438,-150.0,0.00037952,2]
[361863882,1747852250459,-1114.0,0.00037956,8]
[361863883,1747852250483,-150.0,0.00037961,2]
[361863884,1747852250505,-150.0,0.00037971,2]
[361863885,1747852250525,-1114.0,0.00037983,8]
[361863886,1747852250545,-400.0,0.00038,120]
[361863887,1747852250564,-1129.26043695,0.00038003,2]
[361863888,1747852250583,-200.0,0.00038003,2]
[361863889,1747852250605,-200.0,0.00038003,2]
[361863890,1747852250624,-200.0,0.00038003,2]
[361863891,1747852250643,-641.7790521,0.00038003,37]
[361863892,1747852250661,-1114.0,0.00038011,8]
[361863893,1747852250680,-150.0,0.00038024,2]
[361863894,1747852250698,-1114.0,0.00038038,8]
[361863895,1747852250716,-1114.0,0.00038065,8]
[361863896,1747852250735,-150.0,0.00038077,2]
[361863897,1747852250753,-183.207143,0.00038082,5]
[361863898,1747852250776,-1114.0,0.00038093,8]
[361863899,1747852250797,-150.0,0.00038103,2]
[361863900,1747852250816,-150.0,0.00038109,2]
[361863901,1747852250835,-1114.0,0.0003812,8]
[361863902,1747852250856,-507.95662155,0.00038121,5]
[361863903,1747852250876,-604.36537081,0.00038121,5]
[361863904,1747852250896,-1000.0,0.00038121,5]
[361863905,1747852250914,-553.13846096,0.00038121,5]
[361863906,1747852250934,-369.67896349,0.00038135,2]
[361863907,1747852250952,-1114.0,0.00038148,8]
[361863908,1747852250970,-150.0,0.00038163,7]
[361863909,1747852250986,-150.0,0.00038171,2]
[361863910,1747852251006,-1114.0,0.00038175,8]
[361863911,1747852251024,-150.0,0.00038176,2]
[361863912,1747852251042,-150.0,0.00038181,2]
[361863913,1747852251059,-150.0,0.00038189,2]
[361863914,1747852251078,-150.0,0.0003819,2]
[361863915,1747852251097,-150.0,0.00038195,2]
[361863916,1747852251116,-200.0,0.000382,16]
[361863917,1747852251134,-1114.0,0.00038202,8]
[361863918,1747852251152,-150.0,0.00038203,7]
[361863919,1747852251169,-302.22,0.00038205,2]
[361863920,1747852251187,-647.522749,0.00038225,120]
[361863921,1747852251205,-2000.0,0.00038225,120]
[361863922,1747852251221,-150.0,0.00038228,2]
[361863923,1747852251239,-1114.0,0.0003823,8]
[361863924,1747852251257,-150.0,0.00038236,7]
[361863925,1747852251276,-150.0,0.0003824,2]
[361863926,1747852251294,-1134.15066846,0.00038257,8]
[361863927,1747852251310,-150.0,0.00038259,2]
[361863928,1747852251328,-1494.63282286,0.0003826,2]
[361863929,1747852251346,-1000.0,0.0003827,5]
[361863930,1747852251365,-150.0,0.0003829,2]
[361863931,1747852251381,-150.0,0.00038294,2]
[361863932,1747852251399,-544.14353745,0.0003831,2]
[361863933,1747852251417,-150.0,0.00038334,2]
[361863934,1747852251435,-150.0,0.00038339,2]
[361863935,1747852251455,-500.0,0.00038345,60]
[361863936,1747852251473,-592.86375113,0.00038345,60]
[361863937,1747852251490,-300.0,0.00038355,10]
[361863938,1747852251508,-334.00000021,0.00038355,10]
[361863939,1747852251525,-155.316,0.00038355,2]
[361863940,1747852251541,-311.91895861,0.00038356,2]
[361863941,1747852251559,-380.59503847,0.00038356,2]
[361863942,1747852251577,-220.0,0.00038356,30]
[361863943,1747852251595,-4020.84155285,0.00038356,5]
[361863944,1747852251611,-5000.4,0.00038356,5]
[361863945,1747852251645,-245.545601,0.00038356,7]
[361863946,1747852251670,-151.0,0.00038356,7]
[361863947,1747852251694,-151.0,0.00038356,7]
[361863948,1747852251716,-151.0,0.00038356,7]
[361863949,1747852251739,-151.0,0.00038356,7]
[361863950,1747852251760,-151.0,0.00038356,7]
[361863951,1747852251781,-151.0,0.00038356,7]
[361863952,1747852251801,-151.0,0.00038356,7]
[361863953,1747852251812,-151.0,0.00038356,7]
[361863954,1747852251821,-152.689741,0.00038356,7]
[361863955,1747852251831,-151.0,0.00038356,7]
[361863956,1747852252285,-151.0,0.00038356,7]
[361863957,1747852252338,-420.0,0.00038356,30]
[361863958,1747852252354,-420.0,0.00038356,30]
[361863959,1747852252364,-420.0,0.00038356,30]
[361863960,1747852252374,-209.89324831,0.00038356,30]
[361863961,1747852252384,-420.0,0.00038356,30]
[361863962,1747852252393,-420.0,0.00038356,30]
[361863963,1747852252402,-420.0,0.00038356,30]
[361863964,1747852252412,-420.0,0.00038356,30]
[361863965,1747852252422,-171.03906341,0.00038356,30]
[361863966,1747852252431,-420.0,0.00038356,30]
[361863967,1747852252440,-420.0,0.00038356,30]
[361863968,1747852252450,-420.0,0.00038356,30]
[361863969,1747852252459,-420.0,0.00038356,30]
[361863970,1747852252469,-420.0,0.00038356,30]
[361863971,1747852252478,-358.05185801,0.00038356,30]
[361863972,1747852252488,-420.0,0.00038356,30]
[361863973,1747852252498,-420.0,0.00038356,30]
[361863974,1747852252508,-420.0,0.00038356,30]
[361863975,1747852252518,-420.0,0.00038356,30]
[361863976,1747852252528,-420.0,0.00038356,30]
[361863977,1747852252537,-420.0,0.00038356,30]
[361863978,1747852252546,-264.22863602,0.00038356,30]
[361863979,1747852252556,-420.0,0.00038356,30]
[361863980,1747852252565,-151.0,0.00038356,7]
[361863981,1747852252575,-151.0,0.00038356,7]
[361863982,1747852252584,-420.0,0.00038356,30]
[361863983,1747852252596,-310.83417055,0.00038356,30]
[361863984,1747852252607,-151.0,0.00038356,7]
[361863985,1747852252617,-420.0,0.00038356,30]
[361863986,1747852252627,-420.0,0.00038356,30]
[361863987,1747852252637,-151.0,0.00038356,7]
[361863988,1747852252646,-151.0,0.00038356,7]
[361863989,1747852252656,-420.0,0.00038356,30]
[361863990,1747852252667,-393.665471,0.00038356,7]
[361863991,1747852252677,-393.665471,0.00038356,7]
[361863992,1747852252687,-393.665471,0.00038356,7]
[361863993,1747852252697,-393.665471,0.00038356,7]
[361863994,1747852252707,-420.0,0.00038356,30]
[361863995,1747852252718,-420.0,0.00038356,30]
[361863996,1747852252727,-151.0,0.00038356,7]
[361863997,1747852252738,-151.0,0.00038356,7]
[361863998,1747852252748,-151.0,0.00038356,7]
[361863999,1747852252758,-420.0,0.00038356,30]
[361864000,1747852252769,-151.0,0.00038356,7]
[361864001,1747852252779,-420.0,0.00038356,30]
[361864002,1747852252788,-420.0,0.00038356,30]
[361864003,1747852252798,-420.0,0.00038356,30]
[361864004,1747852252808,-420.0,0.00038356,30]
[361864005,1747852252818,-192.361055,0.00038356,7]
[361864006,1747852252828,-340.35225102,0.00038356,30]
[361864007,1747852252838,-420.0,0.00038356,30]
[361864008,1747852252851,-420.0,0.00038356,30]
[361864009,1747852252860,-420.0,0.00038356,30]
[361864010,1747852252870,-151.0,0.00038356,7]
[361864011,1747852252880,-151.0,0.00038356,7]
[361864012,1747852252891,-151.0,0.00038356,7]
[361864013,1747852252900,-420.0,0.00038356,30]
[361864014,1747852252911,-420.28896483,0.00038356,30]
[361864015,1747852252920,-420.0,0.00038356,30]
[361864016,1747852252931,-420.0,0.00038356,30]
[361864017,1747852252941,-552.19,0.00038356,30]
[361864018,1747852252950,-420.0,0.00038356,30]
[361864019,1747852252962,-151.0,0.00038356,7]
[361864020,1747852252971,-420.0,0.00038356,30]
[361864021,1747852252982,-478.02399997,0.00038356,30]
[361864022,1747852252992,-664.68,0.00038356,30]
[361864023,1747852253006,-151.0,0.00038356,7]
[361864024,1747852253015,-346.84968192,0.00038356,30]
[361864025,1747852253025,-489.34,0.00038356,30]
[361864026,1747852253035,-420.0,0.00038356,30]
[361864027,1747852253045,-446.59,0.00038356,30]
[361864028,1747852253054,-420.0,0.00038356,30]
[361864029,1747852253064,-876.19,0.00038356,30]
[361864030,1747852253074,-420.0,0.00038356,30]
[361864031,1747852253084,-420.0,0.00038356,30]
[361864032,1747852253095,-420.0,0.00038356,30]
[361864033,1747852253105,-500.0,0.00038356,2]
[361864034,1747852253114,-420.0,0.00038356,30]
[361864035,1747852253124,-420.0,0.00038356,30]
[361864036,1747852253134,-420.0,0.00038356,30]
[361864037,1747852253144,-420.0,0.00038356,30]
[361864038,1747852253154,-1402.79,0.00038356,30]
[361864039,1747852253164,-420.0,0.00038356,30]
[361864040,1747852253174,-420.0,0.00038356,30]
[361864041,1747852253184,-420.0,0.00038356,30]
[361864042,1747852253194,-151.322805,0.00038356,7]
[361864043,1747852253204,-420.0,0.00038356,30]
[361864044,1747852253214,-420.0,0.00038356,30]
[361864045,1747852253225,-497.1,0.00038356,30]
[361864046,1747852253235,-420.0,0.00038356,30]
[361864047,1747852253245,-420.0,0.00038356,30]
[361864048,1747852253255,-933.98,0.00038356,30]
[361864049,1747852253265,-420.0,0.00038356,30]
[361864050,1747852253275,-420.0,0.00038356,30]
[361864051,1747852253285,-438.25346033,0.00038356,30]
[361864052,1747852253295,-420.0,0.00038356,30]
[361864053,1747852253304,-420.0,0.00038356,30]
[361864054,1747852253314,-611.48,0.00038356,30]
[361864055,1747852253324,-780.47,0.00038356,30]
[361864056,1747852253334,-1299.68,0.00038356,30]
[361864057,1747852253343,-420.0,0.00038356,30]
[361864058,1747852253356,-420.0,0.00038356,30]
[361864059,1747852253366,-482.03371997,0.00038356,30]
[361864060,1747852253376,-420.0,0.00038356,30]
[361864061,1747852253386,-420.0,0.00038356,30]
[361864062,1747852253396,-911.46,0.00038356,30]
[361864063,1747852253406,-420.0,0.00038356,7]
[361864064,1747852253417,-623.38,0.00038356,30]
[361864065,1747852253427,-151.0,0.00038356,7]
[361864066,1747852253437,-420.0,0.00038356,30]
[361864067,1747852253447,-420.0,0.00038356,30]
[361864068,1747852253458,-477.77,0.00038356,30]
[361864069,1747852253468,-420.0,0.00038356,30]
[361864070,1747852253478,-509.37,0.00038356,30]
[361864071,1747852253488,-420.0,0.00038356,30]
[361864072,1747852253498,-420.0,0.00038356,30]
[361864073,1747852253508,-651.1,0.00038356,30]
[361864074,1747852253519,-420.0,0.00038356,30]
[361864075,1747852253529,-749.24,0.00038356,30]
[361864076,1747852253539,-420.0,0.00038356,30]
[361864077,1747852253549,-557.83229985,0.00038356,30]
[361864078,1747852253559,-542.78,0.00038356,30]
[361864079,1747852253569,-1619.08,0.00038356,30]
[361864080,1747852253580,-420.0,0.00038356,30]
[361864081,1747852253590,-420.0,0.00038356,30]
[361864082,1747852253602,-437.05,0.00038356,30]
[361864083,1747852253612,-473.85,0.00038356,30]
[361864084,1747852253622,-593.38,0.00038356,30]
[361864085,1747852253632,-420.0,0.00038356,30]
[361864086,1747852253642,-420.0,0.00038356,30]
[361864087,1747852253652,-420.0,0.00038356,30]
[361864088,1747852253663,-606.83,0.00038356,30]
[361864089,1747852253674,-420.0,0.00038356,30]
[361864090,1747852253683,-420.0,0.00038356,30]
[361864091,1747852253693,-420.0,0.00038356,30]
[361864092,1747852253704,-840.16,0.00038356,30]
[361864093,1747852253714,-420.0,0.00038356,30]
[361864094,1747852253724,-219.20989214,0.00038356,30]
[361864095,1747852253735,-420.0,0.00038356,30]
[361864096,1747852253745,-1244.08,0.00038356,30]
[361864097,1747852253754,-420.0,0.00038356,30]
[361864098,1747852253765,-468.2,0.00038356,30]
[361864099,1747852253775,-420.0,0.00038356,30]
[361864100,1747852253785,-1121.74,0.00038356,30]
[361864101,1747852253795,-420.0,0.00038356,30]
[361864102,1747852253805,-420.0,0.00038356,30]
[361864103,1747852253815,-462.98,0.00038356,30]
[361864104,1747852253825,-420.0,0.00038356,30]
[361864105,1747852253836,-720.37,0.00038356,30]
[361864106,1747852253846,-420.0,0.00038356,30]
[361864107,1747852253857,-434.79,0.00038356,30]
[361864108,1747852253867,-420.0,0.00038356,30]
[361864109,1747852253877,-420.0,0.00038356,30]
[361864110,1747852253887,-550.16,0.00038356,30]
[361864111,1747852253897,-420.0,0.00038356,30]
[361864112,1747852253907,-1741.1,0.00038356,30]
[361864113,1747852253918,-546.07,0.00038356,30]
[361864114,1747852253928,-420.0,0.00038356,30]
[361864115,1747852253939,-1662.17,0.00038356,30]
[361864116,1747852253950,-537.84,0.00038356,30]
[361864117,1747852253960,-420.0,0.00038356,30]
[361864118,1747852253970,-420.0,0.00038356,30]
[361864119,1747852253979,-151.0,0.00038356,7]
[361864120,1747852253989,-420.0,0.00038356,30]
[361864121,1747852254000,-420.0,0.00038356,30]
[361864122,1747852254012,-420.0,0.00038356,30]
[361864123,1747852254022,-420.0,0.00038356,30]
[361864124,1747852254032,-420.0,0.00038356,30]
[361864125,1747852254042,-420.0,0.00038356,30]
[361864126,1747852254052,-420.0,0.00038356,30]
[361864127,1747852254062,-420.0,0.00038356,30]
[361864128,1747852254072,-709.92,0.00038356,30]
[361864129,1747852254082,-734.49,0.00038356,30]
[361864130,1747852254092,-957.18,0.00038356,30]
[361864131,1747852254103,-420.0,0.00038356,30]
[361864132,1747852254113,-420.0,0.00038356,30]
[361864133,1747852254123,-420.0,0.00038356,30]
[361864134,1747852254132,-420.0,0.00038356,30]
[361864135,1747852254143,-506.54,0.00038356,30]
[361864136,1747852254153,-420.0,0.00038356,30]
[361864137,1747852254163,-420.0,0.00038356,30]
[361864138,1747852254172,-1417.68,0.00038356,30]
[361864139,1747852254182,-902.29,0.00038356,30]
[361864140,1747852254191,-420.0,0.00038356,30]
[361864141,1747852254201,-420.0,0.00038356,30]
[361864142,1747852254210,-420.0,0.00038356,30]
[361864143,1747852254220,-420.0,0.00038356,30]
[361864144,1747852254230,-1576.68,0.00038356,30]
[361864145,1747852254240,-420.0,0.00038356,30]
[361864146,1747852254249,-718.17,0.00038356,30]
[361864147,1747852254260,-420.0,0.00038356,30]
[361864148,1747852254270,-420.0,0.00038356,30]
[361864149,1747852254280,-420.0,0.00038356,30]
[361864150,1747852254290,-420.0,0.00038356,30]
[361864151,1747852254300,-646.46,0.00038356,30]
[361864152,1747852254310,-420.0,0.00038356,30]
[361864153,1747852254320,-919.08,0.00038356,7]
[361864154,1747852254330,-420.0,0.00038356,30]
[361864155,1747852254340,-425.18,0.00038356,30]
[361864156,1747852254351,-420.0,0.00038356,30]
[361864157,1747852254361,-420.0,0.00038356,30]
[361864158,1747852254370,-420.0,0.00038356,30]
[361864159,1747852254380,-420.0,0.00038356,30]
[361864160,1747852254390,-420.0,0.00038356,30]
[361864161,1747852254400,-514.48661474,0.00038356,30]
[361864162,1747852254410,-420.0,0.00038356,30]
[361864163,1747852254419,-726.5,0.00038356,30]
[361864164,1747852254429,-420.0,0.00038356,30]
[361864165,1747852254439,-420.0,0.00038356,30]
[361864166,1747852254449,-1185.99,0.00038356,30]
[361864167,1747852254458,-1061.53,0.00038356,30]
[361864168,1747852254468,-420.0,0.00038356,30]
[361864169,1747852254478,-420.0,0.00038356,30]
[361864170,1747852254487,-420.0,0.00038356,30]
[361864171,1747852254497,-500.0,0.00038356,30]
[361864172,1747852254507,-500.0,0.00038356,30]
[361864173,1747852254516,-420.0,0.00038356,30]
[361864174,1747852254526,-420.0,0.00038356,30]